bitfinex-derivatives/quotes_BNBF0:USTF0_20260114
["timestamp","ask_amount","ask_price","bid_price","bid_amount"]
[1768396955728,0.76338027,934.49,933.05,2.628152]
[1768396955934,0.76338027,934.48,933.05,2.628152]
[1768396956129,0.76338027,934.47,933.05,2.628152]
[1768396956330,0.76338027,934.46,933.06,2.628152]
[1768396956534,0.76338027,934.45,933.06,2.628152]
[1768396956836,0.76338027,934.44,933.06,2.628152]
[1768396957030,0.76338027,934.43,933.06,2.628152]
[1768396957230,0.76338027,934.42,933.06,2.628152]
[1768396957431,0.763,934.67,932.79,0.1863359]
[1768396957432,0.76338027,934.41,933.05,2.628152]
[1768396957735,0.76338027,934.4,933.05,2.628152]
[1768396958036,0.76338027,934.39,933.05,2.628152]
[1768396958234,0.76338027,934.38,933.05,2.628152]
[1768396958436,0.76338027,934.37,933.06,2.628152]
[1768396958632,0.76338027,934.36,933.06,2.628152]
[1768396958834,0.76338027,934.35,933.06,2.628152]
[1768396959133,0.763,934.67,933.06,2.628152]
[1768396959334,0.76412618,934.66,933.08,2.628152]
[1768396959534,0.76412618,934.65,933.08,2.628152]
[1768396959737,0.76412618,934.64,933.08,2.628152]
[1768396960035,0.76412618,934.63,933.08,2.628152]
[1768396960238,0.76412618,934.62,933.08,2.628152]
[1768396960437,0.76412618,934.61,933.08,2.628152]
[1768396960639,0.76412618,934.6,933.08,2.628152]
[1768396960940,0.76412618,934.59,933.01,2.628152]
[1768396961136,0.76412618,934.58,933.01,2.628152]
[1768396961336,0.76412618,934.57,933.01,2.628152]
[1768396961539,0.76412618,934.56,933.01,2.628152]
[1768396961739,0.76412618,934.55,933.01,2.628152]
[1768396961939,0.76412618,934.54,933.01,2.628152]
[1768396962242,0.76412618,934.53,933.01,2.628152]
[1768396962542,0.76412618,934.52,933.01,2.628152]
[1768396962739,0.76412618,934.51,933.01,2.628152]
[1768396963039,0.76412618,934.5,933.01,2.628152]
[1768396963240,0.76412618,934.49,933.01,2.628152]
[1768396963439,0.76412618,934.48,933.01,2.628152]
[1768396963738,0.76412618,934.47,933.0,2.628152]
[1768396963939,0.76412618,934.46,933.0,2.628152]
[1768396964143,0.76412618,934.45,933.0,2.628152]
[1768396964439,0.76412618,934.44,933.0,2.628152]
[1768396964739,0.76412618,934.43,933.0,2.628152]
[1768396964940,0.76412618,934.42,933.0,2.628152]
[1768396965140,0.76412618,934.41,933.05,2.628152]
[1768396965342,0.76412618,934.4,933.05,2.628152]
[1768396965543,0.76412618,934.39,933.05,2.628152]
[1768396965740,0.76412618,934.38,933.05,2.628152]
[1768396965944,0.76412618,934.37,933.05,2.628152]
[1768396966244,0.76412618,934.36,933.05,2.628152]
[1768396966443,0.763,934.67,933.05,2.628152]
[1768396966639,0.76106752,934.66,933.08,2.628152]
[1768396966841,0.76106752,934.65,933.08,2.628152]
[1768396967040,0.76106752,934.64,933.08,2.628152]
[1768396967245,0.76106752,934.63,933.08,2.628152]
[1768396967441,0.76106752,934.62,933.08,2.628152]
[1768396967743,0.76106752,934.61,933.22,2.628152]
[1768396967946,0.76106752,934.6,933.22,2.628152]
[1768396968148,0.76106752,934.59,933.22,2.628152]
[1768396968347,0.76106752,934.58,933.22,2.628152]
[1768396968547,0.76106752,934.57,933.22,2.628152]
[1768396968750,0.76106752,934.56,933.22,2.628152]
[1768396969048,0.76106752,934.55,933.22,2.628152]
[1768396969243,0.76106752,934.54,933.22,2.628152]
[1768396969445,0.76106752,934.53,933.22,2.628152]
[1768396969744,0.76106752,934.52,933.22,2.628152]
[1768396969944,0.763,934.67,933.22,2.628152]
[1768396970144,0.76116779,934.66,933.22,2.628152]
[1768396970345,0.76116779,934.65,933.22,2.628152]
[1768396970647,0.76116779,934.64,933.22,2.628152]
[1768396970846,0.76116779,934.63,933.22,2.628152]
[1768396971043,0.76116779,934.62,933.22,2.628152]
[1768396971244,0.76116779,934.61,933.22,2.628152]
[1768396971444,0.76116779,934.6,933.22,2.628152]
[1768396971644,0.76116779,934.59,933.22,2.628152]
[1768396971844,0.76116779,934.58,933.22,2.628152]
[1768396972148,0.76116779,934.57,933.22,2.628152]
[1768396972348,0.76116779,934.56,933.22,2.628152]
[1768396972644,0.76116779,934.55,933.23,2.628152]
[1768396972948,0.763,934.67,933.24,2.628152]
[1768396973146,0.76114454,934.66,933.24,2.628152]
[1768396973344,0.76114454,934.65,933.24,2.628152]
[1768396973544,0.76114454,934.64,933.24,2.628152]
[1768396973748,0.76114454,934.63,933.24,2.628152]
[1768396974046,0.76114454,934.62,933.24,2.628152]
[1768396974246,0.76114454,934.61,933.24,2.628152]
[1768396974444,0.76114454,934.6,933.24,2.628152]
[1768396974649,0.76114454,934.59,933.24,2.628152]
[1768396974849,0.76114454,934.58,933.24,2.628152]
[1768396975049,0.76114454,934.57,933.26,2.628152]
[1768396975245,0.76114454,934.56,933.26,2.628152]
[1768396975450,0.76114454,934.55,933.26,2.628152]
[1768396975746,0.763,934.67,933.25,2.628152]
[1768396975946,0.761097,934.66,933.25,2.628152]
[1768396976148,0.761097,934.65,933.25,2.628152]
[1768396976347,0.761097,934.64,933.25,2.628152]
[1768396976646,0.761097,934.63,933.25,2.628152]
[1768396976847,0.761097,934.62,933.25,2.628152]
[1768396977047,0.761097,934.61,933.25,2.628152]
[1768396977250,0.761097,934.6,933.25,2.628152]
[1768396977545,0.761097,934.59,933.25,2.628152]
[1768396977849,0.761097,934.58,933.25,2.628152]
[1768396978050,0.761097,934.57,933.25,2.628152]
[1768396978349,0.761097,934.56,933.25,2.628152]
[1768396978550,0.763,934.67,933.25,2.628152]
[1768396978750,0.76101899,934.66,933.25,2.628152]
[1768396978951,0.76101899,934.65,933.25,2.628152]
[1768396979151,0.76101887,934.64,933.25,2.628152]
[1768396979352,0.76101887,934.63,933.25,2.628152]
[1768396979651,0.76101887,934.62,933.25,2.628152]
[1768396979948,0.76101887,934.61,933.25,2.628152]
[1768396980149,0.76101887,934.6,933.25,2.628152]
[1768396980454,0.76101887,934.59,933.26,2.628152]
[1768396980648,0.76101887,934.58,933.26,2.628152]
[1768396980851,0.76101887,934.57,933.26,2.628152]
[1768396981054,0.763,934.67,933.26,2.628152]
[1768396981249,0.763,934.67,933.36,2.628152]
[1768396982353,0.763,934.67,933.35,2.628152]
[1768396984552,0.763,934.67,933.34,2.628152]
[1768396986454,0.763,934.67,933.33,2.628152]
[1768396988659,0.763,934.67,933.32,2.628152]
[1768396990662,0.763,934.67,933.35,2.628152]
[1768396991158,0.763,934.67,933.34,2.628152]
[1768396992157,0.763,934.67,933.35,2.628152]
[1768396992662,0.763,934.67,933.34,2.628152]
[1768396994362,0.763,934.67,933.32,2.628152]
[1768396995461,0.763,934.67,933.24,2.628152]
[1768396997965,0.18618586,935.41,933.24,2.628152]
[1768397000769,0.956,935.4,933.24,2.628152]
[1768397001471,0.956,935.4,933.25,2.628152]
[1768397002168,0.956,935.4,933.33,2.628152]
[1768397002672,0.956,935.4,933.41,2.628152]
[1768397003571,0.956,935.4,933.4,2.628152]
[1768397004169,0.956,935.4,933.41,2.628152]
[1768397005773,0.956,935.4,933.43,2.628152]
[1768397006175,0.956,935.4,933.51,2.628152]
[1768397006674,0.956,935.4,933.53,2.628152]
[1768397007274,0.956,935.4,933.51,2.628152]
[1768397008283,0.956,935.4,933.52,2.628152]
[1768397009482,0.956,935.4,933.53,2.628152]
[1768397010883,0.956,935.4,933.51,2.628152]
[1768397011380,0.956,935.4,933.52,2.628152]
[1768397013982,0.956,935.4,933.51,2.628152]
[1768397021286,0.956,935.4,933.52,2.628152]
[1768397024388,0.956,935.4,933.53,2.628152]
[1768397027995,0.956,935.4,933.51,2.628152]
[1768397028693,0.956,935.4,933.48,2.628152]
[1768397033395,0.956,935.4,933.49,2.628152]
[1768397035397,0.956,935.4,933.48,2.628152]
[1768397035998,0.956,935.4,933.51,2.628152]
[1768397037498,0.956,935.4,933.53,2.628152]
[1768397041006,0.956,935.4,933.5,2.628152]
[1768397041703,0.956,935.4,933.47,2.628152]
[1768397042204,0.956,935.4,933.44,2.628152]
[1768397042603,0.956,935.4,933.29,2.628152]
[1768397043102,0.956,935.4,933.3,2.628152]
[1768397043607,0.956,935.4,933.29,2.628152]
[1768397044304,0.956,935.4,933.27,2.628152]
[1768397044705,0.956,935.4,933.26,2.81426418]
[1768397045210,0.956,935.4,933.28,2.628152]
[1768397045707,0.956,935.4,933.27,2.628152]
[1768397046212,0.956,935.4,933.41,3.6794129]
[1768397046508,0.956,935.4,933.73,2.628152]
[1768397046910,0.956,935.4,933.62,2.628152]
[1768397047210,0.956,935.4,934.35,1.6007478]
[1768397047814,0.18610571,935.85,934.35,1.6007478]
[1768397051421,1.188,935.84,934.35,1.6007478]
[1768397056123,1.188,935.84,934.34,1.6007478]
[1768397056321,1.188,935.84,934.35,1.6007478]
[1768397056522,1.188,935.84,934.34,1.6007478]
[1768397063230,1.188,935.84,934.33,1.6007478]
[1768397063432,1.188,935.84,934.34,1.6007478]
[1768397064133,1.188,935.84,933.66,2.628152]
[1768397064134,1.188,935.84,934.33,1.6007478]
[1768397070141,1.188,935.84,934.32,1.6007478]
[1768397070341,1.188,935.84,934.33,1.6007478]
[1768397071038,1.188,935.84,934.32,1.6007478]
[1768397071843,1.188,935.84,934.26,1.6007478]
[1768397072139,1.188,935.84,934.25,1.6007478]
[1768397072343,1.188,935.84,934.26,1.6007478]
[1768397073147,1.188,935.84,934.25,1.6007478]
[1768397073443,1.188,935.84,934.26,1.6007478]
[1768397075648,1.188,935.84,934.17,1.6007478]
[1768397076948,1.188,935.84,933.26,0.18611218]
[1768397076949,1.188,935.84,934.16,1.6007478]
[1768397077153,1.188,935.84,934.15,1.6007478]
[1768397078848,1.188,935.84,934.14,1.6007478]
[1768397085853,1.188,935.84,934.13,1.6007478]
[1768397087654,1.188,935.84,934.11,1.6007478]
[1768397088350,1.188,935.84,934.12,1.6007478]
[1768397088857,1.188,935.84,934.1,1.6007478]
[1768397089351,1.188,935.84,934.11,1.6007478]
[1768397090257,1.188,935.84,934.12,1.6007478]
[1768397092353,1.188,935.84,934.01,1.6007478]
[1768397093258,1.188,935.84,934.0,1.6007478]
[1768397093458,1.188,935.84,934.01,1.6007478]
[1768397094356,1.188,935.84,934.0,1.6007478]
[1768397095154,1.188,935.84,933.99,1.6007478]
[1768397096255,1.188,935.84,933.98,1.6007478]
[1768397098264,1.188,935.84,933.97,1.6007478]
[1768397098861,1.188,935.84,933.98,1.6007478]
[1768397099261,1.188,935.84,933.97,1.6007478]
[1768397107568,0.18610571,935.85,933.97,1.6007478]
[1768397110171,0.18610571,935.85,933.98,1.6007478]
[1768397111572,0.994,935.84,933.98,1.6007478]
[1768397112272,0.994,935.84,933.95,1.6007478]
[1768397112568,0.994,935.84,933.93,1.6007478]
[1768397112769,0.994,935.84,933.85,1.6007478]
[1768397113072,0.994,935.84,933.84,1.6007478]
[1768397114974,0.994,935.84,933.82,1.6007478]
[1768397115274,0.994,935.84,933.79,1.6007478]
[1768397116076,0.994,935.84,933.78,1.6007478]
[1768397116373,0.994,935.84,933.79,1.6007478]
[1768397117178,0.994,935.84,933.78,1.6007478]
[1768397117876,0.994,935.84,933.73,1.6007478]
[1768397118173,0.994,935.84,933.72,1.6007478]
[1768397119079,0.994,935.84,933.71,1.6007478]
[1768397119279,0.994,935.84,933.72,1.6007478]
[1768397120178,0.994,935.84,933.71,1.6007478]
[1768397122276,0.994,935.84,933.7,1.6007478]
[1768397123678,0.994,935.84,933.62,1.6007478]
[1768397124177,0.994,935.84,933.61,1.6007478]
[1768397124376,0.994,935.84,933.62,1.6007478]
[1768397125381,0.994,935.84,933.61,1.6007478]
[1768397126282,0.994,935.84,933.6,1.6007478]
[1768397127081,0.994,935.84,933.59,1.6007478]
[1768397127281,0.994,935.84,933.6,1.6007478]
[1768397128086,0.994,935.84,933.59,1.6007478]
[1768397134286,0.994,935.84,933.6,1.6007478]
[1768397135091,0.994,935.84,933.59,1.6007478]
[1768397135288,0.994,935.84,933.6,1.6007478]
[1768397141394,0.994,935.84,933.61,1.6007478]
[1768397146199,0.994,935.84,933.62,1.6007478]
[1768397147198,0.994,935.84,933.63,1.6007478]
[1768397147400,0.994,935.84,933.62,1.6007478]
[1768397147700,0.994,935.84,933.63,1.6007478]
[1768397149104,0.994,935.84,933.65,1.6007478]
[1768397150401,0.994,935.84,933.66,1.6007478]
[1768397151103,0.994,935.84,933.67,1.6007478]
[1768397152301,0.994,935.84,933.68,1.6007478]
[1768397153206,0.994,935.84,933.69,1.6007478]
[1768397154203,0.994,935.84,933.7,1.6007478]
[1768397155202,0.994,935.84,933.71,1.6007478]
[1768397156304,0.994,935.84,933.72,1.6007478]
[1768397157106,0.994,935.84,933.74,1.6007478]
[1768397158104,0.994,935.84,933.75,1.6007478]
[1768397158306,0.994,935.84,933.72,1.6007478]
[1768397158606,0.18610571,935.85,933.72,1.6007478]
[1768397159108,0.18610571,935.85,933.73,1.6007478]
[1768397161112,0.18610571,935.85,933.74,1.6007478]
[1768397161808,0.18610571,935.85,933.7,1.6007478]
[1768397162011,1.176,935.84,933.7,1.6007478]
[1768397162712,1.176,935.84,933.69,1.6007478]
[1768397163813,1.176,935.84,933.67,1.6007478]
[1768397164313,1.176,935.84,933.66,1.6007478]
[1768397165213,1.176,935.84,933.67,1.6007478]
[1768397165408,2.6600726,935.83,933.63,1.6007478]
[1768397166013,2.6600726,935.82,933.63,1.6007478]
[1768397167414,2.6600726,935.83,933.62,1.6007478]
[1768397168108,2.6600726,935.83,933.63,1.6007478]
[1768397168311,2.6600726,935.83,933.62,1.6007478]
[1768397170314,2.6600726,935.83,933.61,1.6007478]
[1768397170514,3.8360726,935.84,933.61,1.6007478]
[1768397170810,3.8360726,935.84,933.55,1.6007478]
[1768397171214,2.6600726,935.77,933.55,1.6007478]
[1768397171412,2.6600726,935.77,933.54,1.6007478]
[1768397171615,2.6600726,935.78,933.54,1.6007478]
[1768397172312,2.6600726,935.78,933.53,1.6007478]
[1768397173216,2.6600726,935.79,933.53,1.6007478]
[1768397174317,2.6600726,935.79,933.52,1.6007478]
[1768397174615,2.6600726,935.8,933.52,1.6007478]
[1768397176316,2.6600726,935.8,933.51,1.6007478]
[1768397176815,2.6600726,935.81,933.51,1.6007478]
[1768397178317,2.6600726,935.83,933.52,1.6007478]
[1768397179013,2.6600726,935.83,933.55,1.6007478]
[1768397179315,1.176,935.84,933.69,1.6007478]
[1768397185220,1.176,935.84,933.7,1.6007478]
[1768397192526,1.176,935.84,933.69,1.6007478]
[1768397193827,1.176,935.84,933.62,1.6007478]
[1768397195333,1.176,935.84,933.63,1.6007478]
[1768397203634,1.176,935.84,933.56,1.6007478]
[1768397204035,2.6600726,935.83,933.56,1.6007478]
[1768397205640,3.8360726,935.84,933.56,1.6007478]
[1768397209446,2.6600726,935.83,933.55,1.6007478]
[1768397211343,2.6600726,935.83,933.54,1.6007478]
[1768397211546,2.6600726,935.83,933.55,1.6007478]
[1768397212243,2.6600726,935.83,933.54,1.6007478]
[1768397213148,0.953,935.82,933.54,1.6007478]
[1768397216047,0.953,935.82,933.55,1.6007478]
[1768397217149,0.953,935.82,933.56,1.6007478]
[1768397217350,0.953,935.82,933.57,1.6007478]
[1768397218551,0.953,935.82,933.58,1.6007478]
[1768397220048,0.953,935.82,933.6,1.6007478]
[1768397220547,0.953,935.82,933.64,1.6007478]
[1768397220851,0.953,935.82,933.65,1.6007478]
[1768397223348,0.953,935.82,933.66,1.6007478]
[1768397225251,0.18610571,935.85,933.67,1.6007478]
[1768397228257,1.252,935.84,933.67,1.6007478]
[1768397229259,1.252,935.84,933.72,1.6007478]
[1768397230564,1.252,935.84,933.74,1.6007478]
[1768397232266,1.252,935.84,933.75,1.6007478]
[1768397233067,1.252,935.84,933.76,1.6007478]
[1768397233267,1.252,935.84,933.75,1.6007478]
[1768397236769,1.252,935.84,933.76,1.6007478]
[1768397237164,1.252,935.84,933.75,1.6007478]
[1768397237364,1.252,935.84,933.76,1.6007478]
[1768397238270,1.252,935.84,933.75,1.6007478]
[1768397239972,1.252,935.84,933.78,1.6007478]
[1768397240271,1.252,935.84,933.77,1.6007478]
[1768397242574,1.252,935.84,933.76,1.6007478]
[1768397245572,1.252,935.84,933.73,1.6007478]
[1768397246573,0.1861291,935.32,933.73,1.6007478]
[1768397247272,0.1861291,935.32,933.72,1.6007478]
[1768397248377,0.1861291,935.32,933.62,1.6007478]
[1768397249379,0.1861291,935.32,933.63,1.6007478]
[1768397253480,0.1861291,935.32,933.62,1.6007478]
[1768397254380,0.1861291,935.32,933.63,1.6007478]
[1768397257380,0.1861291,935.32,933.64,1.6007478]
[1768397260487,0.1861291,935.32,933.65,1.6007478]
[1768397263290,0.1861291,935.32,933.66,1.6007478]
[1768397264187,0.955,935.31,933.66,1.6007478]
[1768397266194,0.955,935.31,933.67,1.6007478]
[1768397272396,0.955,935.31,933.71,1.6007478]
[1768397274099,0.955,935.31,933.74,1.6007478]
[1768397286113,0.955,935.31,933.75,1.6007478]
[1768397288217,0.1861291,935.32,933.75,1.6007478]
[1768397289213,0.1861291,935.32,933.76,1.6007478]
[1768397290818,1.198,935.31,933.76,1.6007478]
[1768397294120,1.198,935.31,933.82,1.6007478]
[1768397294319,1.198,935.31,933.98,1.6007478]
[1768397295115,1.198,935.31,933.96,1.6007478]
[1768397296220,1.198,935.31,933.94,1.6007478]
[1768397296818,1.198,935.31,933.85,1.6007478]
[1768397297218,1.198,935.31,933.84,1.6007478]
[1768397301129,1.198,935.31,933.83,1.6007478]
[1768397307832,1.198,935.31,933.84,1.6007478]
[1768397311740,1.198,935.31,933.85,1.6007478]
[1768397313340,1.198,935.31,933.88,1.6007478]
[1768397313637,1.198,935.31,933.97,1.6007478]
[1768397315237,1.198,935.31,933.96,1.6007478]
[1768397317840,0.1861291,935.32,933.96,1.6007478]
[1768397319638,2.6600726,936.29,934.03,1.6007478]
[1768397319838,0.01140984,936.35,934.12,1.6007478]
[1768397320037,0.18605745,935.54,934.12,1.6007478]
[1768397320237,2.6600726,936.47,934.11,1.6007478]
[1768397320437,0.18604452,935.55,934.11,1.6007478]
[1768397320744,2.6600726,936.47,934.11,1.6007478]
[1768397321244,2.6600726,936.48,934.1,1.6007478]
[1768397321744,0.18604005,935.89,934.1,1.6007478]
[1768397322242,0.18604005,935.89,934.09,1.6007478]
[1768397323244,0.18604005,935.89,934.08,1.6007478]
[1768397323544,0.18604005,935.89,934.09,1.6007478]
[1768397325145,0.18604005,935.89,934.08,1.6007478]
[1768397326242,0.18604005,935.89,934.07,1.6007478]
[1768397328147,0.18604005,935.89,934.06,1.6007478]
[1768397331049,0.18604005,935.89,934.05,1.6007478]
[1768397335151,0.18604005,935.89,934.06,1.6007478]
[1768397335352,0.18604005,935.89,934.05,1.6007478]
[1768397336151,0.18604005,935.89,934.06,1.6007478]
[1768397340051,0.18604005,935.89,933.4,0.18614852]
[1768397373082,1.291,935.88,933.4,0.18614852]
[1768397418035,0.18604005,935.89,933.4,0.18614852]
[1768397419238,0.18604005,935.89,931.41,8.5488893]
[1768397419535,0.18604005,935.89,933.56,0.18613508]
[1768397419838,0.18604005,935.89,931.41,8.5488893]
[1768397420038,0.18604005,935.89,933.65,0.18614005]
[1768397420338,0.18604005,935.89,931.23,8.5488893]
[1768397420635,0.18604005,935.89,933.65,0.18615997]
[1768397420839,0.18604005,935.89,931.23,8.5488893]
[1768397421137,1.726,935.88,933.61,0.18616594]
[1768397421434,1.726,935.88,931.23,8.5488893]
[1768397421636,1.726,935.88,933.59,0.18626758]
[1768397421937,1.726,935.88,931.23,8.5488893]
[1768397422236,1.726,935.88,933.54,0.18627207]
[1768397422536,1.726,935.88,931.23,8.5488893]
[1768397422736,1.726,935.88,933.54,0.18627257]
[1768397423036,1.726,935.88,931.23,8.5488893]
[1768397423337,1.726,935.88,933.55,0.18627157]
[1768397423538,1.726,935.88,931.23,8.5488893]
[1768397423838,1.726,935.88,933.49,0.18627606]
[1768397424137,1.726,935.88,931.23,8.5488893]
[1768397424338,1.726,935.88,933.5,0.18627506]
[1768397424642,1.726,935.88,931.23,8.5488893]
[1768397425438,1.726,935.88,932.39,0.18628054]
[1768397445154,0.18604005,935.89,932.39,0.18628054]
[1768397448354,1.797,935.88,932.39,0.18628054]
[1768397489483,0.18604005,935.89,932.39,0.18628054]
[1768397492991,1.519,935.88,932.39,0.18628054]
[1768397521917,0.18638431,935.01,932.39,0.18628054]
[1768397548832,2.078,935.0,932.39,0.18628054]
[1768397563940,0.18638431,935.01,932.39,0.18628054]
[1768397567139,1.97,935.0,932.39,0.18628054]
[1768397612174,0.18638431,935.01,932.39,0.18628054]
[1768397616374,1.997,935.0,932.39,0.18628054]
[1768397625486,1.997,935.0,930.48,8.5488893]
[1768397625686,1.997,935.0,932.64,0.18640677]
[1768397625982,1.997,935.0,930.48,8.5488893]
[1768397626287,1.997,935.0,932.79,0.18640677]
[1768397626586,1.997,935.0,930.48,8.5488893]
[1768397626787,1.997,935.0,932.88,0.18640677]
[1768397627086,1.997,935.0,930.48,8.5488893]
[1768397627382,1.997,935.0,932.94,0.18640677]
[1768397627684,1.997,935.0,930.48,8.5488893]
[1768397627987,1.997,935.0,932.97,0.18640677]
[1768397628187,1.997,935.0,930.5,8.5488893]
[1768397628486,1.997,935.0,931.6,0.18640677]
[1768397640088,1.997,935.0,933.28,1.6018035]
[1768397640491,1.997,935.0,933.29,1.6018035]
[1768397641487,1.997,935.0,933.28,1.6018035]
[1768397642192,1.997,935.0,933.27,1.6018035]
[1768397643294,1.997,935.0,933.26,1.6018035]
[1768397644394,1.997,935.0,933.25,1.6018035]
[1768397644590,1.997,935.0,933.23,1.6018035]
[1768397646192,1.997,935.0,933.22,1.6018035]
[1768397647196,1.997,935.0,933.21,1.6018035]
[1768397650199,1.997,935.0,933.2,1.6018035]
[1768397653300,1.997,935.0,933.19,1.6018035]
[1768397655399,0.18638431,935.01,933.19,1.6018035]
[1768397658200,1.823,935.0,933.19,1.6018035]
[1768397662201,1.823,935.0,933.2,1.6018035]
[1768397665306,1.823,935.0,933.21,1.6018035]
[1768397666006,1.823,935.0,933.2,1.6018035]
[1768397666303,1.823,935.0,933.28,1.6018035]
[1768397666909,1.823,935.0,933.29,1.6018035]
[1768397668107,1.823,935.0,933.3,1.6018035]
[1768397669308,1.823,935.0,933.31,1.6018035]
[1768397671207,1.823,935.0,933.32,1.6018035]
[1768397671710,1.823,935.0,933.42,1.6018035]
[1768397672211,1.823,935.0,933.44,1.6018035]
[1768397672709,1.823,935.0,933.46,1.6018035]
[1768397672911,1.823,935.0,933.47,1.6018035]
[1768397673108,1.823,935.0,933.54,1.6018035]
[1768397673314,1.823,935.0,933.52,1.6018035]
[1768397674012,1.823,935.0,933.53,1.6018035]
[1768397676311,1.823,935.0,933.54,1.6018035]
[1768397678118,1.823,935.0,933.55,1.6018035]
[1768397678318,1.823,935.0,933.54,1.6018035]
[1768397679615,1.823,935.0,933.52,1.6018035]
[1768397681218,1.823,935.0,933.51,1.6018035]
[1768397681419,1.823,935.0,933.49,1.6018035]
[1768397682018,1.823,935.0,933.48,1.6018035]
[1768397683221,0.18638431,935.01,933.48,1.6018035]
[1768397683415,0.18638431,935.01,933.47,1.6018035]
[1768397683920,0.18638431,935.01,933.43,1.6018035]
[1768397684416,0.18638431,935.01,933.42,1.6018035]
[1768397685317,0.18638431,935.01,933.43,1.6018035]
[1768397687222,2.671,935.0,933.43,1.6018035]
[1768397691226,2.671,935.0,933.44,1.6018035]
[1768397695825,2.671,935.0,933.43,1.6018035]
[1768397696127,2.671,935.0,933.44,1.6018035]
[1768397700325,2.671,935.0,933.45,1.6018035]
[1768397700626,2.671,935.0,933.44,1.6018035]
[1768397701031,2.671,935.0,933.25,1.6018035]
[1768397701928,2.671,935.0,933.24,1.6018035]
[1768397702432,2.671,935.0,933.23,1.6018035]
[1768397709138,2.671,935.0,933.25,1.6018035]
[1768397713141,2.671,935.0,933.26,1.6018035]
[1768397713344,2.671,935.0,933.25,1.6018035]
[1768397715246,2.671,935.0,933.37,1.6018035]
[1768397715549,2.671,935.0,933.43,1.6018035]
[1768397716248,2.671,935.0,933.44,1.6018035]
[1768397718246,0.18638431,935.01,933.44,1.6018035]
[1768397720350,0.18638431,935.01,933.45,1.6018035]
[1768397722251,2.026,935.0,933.45,1.6018035]
[1768397724249,2.026,935.0,933.46,1.6018035]
[1768397725852,2.026,935.0,933.45,1.6018035]
[1768397726249,2.026,935.0,933.46,1.6018035]
[1768397726749,2.026,935.0,933.53,1.6018035]
[1768397728856,2.026,935.0,933.54,1.6018035]
[1768397729152,2.026,935.0,933.59,1.6018035]
[1768397729552,2.026,935.0,933.63,1.6018035]
[1768397729752,2.026,935.0,933.64,1.6018035]
[1768397730655,2.026,935.0,933.65,1.6018035]
[1768397731155,2.026,935.0,933.66,1.6018035]
[1768397731352,2.026,935.0,933.71,1.6018035]
[1768397732356,2.026,935.0,933.7,1.6018035]
[1768397733350,2.026,935.0,933.69,1.6018035]
[1768397734456,2.026,935.0,933.68,1.6018035]
[1768397735355,2.026,935.0,933.67,1.6018035]
[1768397736453,2.026,935.0,933.66,1.6018035]
[1768397737556,2.026,935.0,933.65,1.6018035]
[1768397738458,2.026,935.0,933.64,1.6018035]
[1768397740561,2.026,935.0,933.63,1.6018035]
[1768397741461,2.026,935.0,933.62,1.6018035]
[1768397743157,2.026,935.0,933.61,1.6018035]
[1768397743358,2.026,935.0,933.66,1.6018035]
[1768397743559,2.026,935.0,933.67,1.6018035]
[1768397743758,2.026,935.0,933.72,1.6018035]
[1768397744460,2.026,935.0,933.71,1.6018035]
[1768397744661,2.026,935.0,933.72,1.6018035]
[1768397745361,2.026,935.0,933.71,1.6018035]
[1768397745863,2.026,935.0,933.69,1.6018035]
[1768397746964,2.026,935.0,933.67,1.6018035]
[1768397749361,2.026,935.0,933.66,1.6018035]
[1768397752464,2.026,935.0,933.67,1.6018035]
[1768397753063,2.026,935.0,933.68,1.6018035]
[1768397753471,2.026,935.0,933.69,1.6018035]
[1768397755469,2.026,935.0,933.7,1.6018035]
[1768397756368,2.026,935.0,933.71,1.6018035]
[1768397757574,2.026,935.0,933.72,1.6018035]
[1768397758469,2.026,935.0,933.73,1.6018035]
[1768397759472,2.026,935.0,933.74,1.6018035]